[Event "12th Asrian Memorial 2019"]
[Site "Yerevan"]
[Date "2019.06.12"]
[Round "2.11"]
[White "Muradyan, Robert"]
[Black "Gholami Orimi, Mahdi"]
[Result "1/2-1/2"]
[ECO "D37"]
[WhiteElo "2144"]
[BlackElo "2445"]
[Annotator "NA"]
[PlyCount "89"]
[EventDate "2019.06.11"]
[EventType "swiss"]
[EventCountry "ARM"]
[SourceTitle "playchess.com"]
[Source "ChessBase"]
[SourceQuality "1"]
[TimeControl "40/5400+30:1800+30"]

1. d4 {[%emt 0:00:00]} Nf6 {[%emt 0:00:00]} 2. Nf3 {[%emt 0:00:05]} e6 {[%emt 0:00:06]} 3. c4 {[%emt 0:00:28]} d5 {[%emt 0:00:09]} 4. Nc3 {[%emt 0:00:54]} dxc4 {[%emt 0:00:09]} 5. e3 {[%emt 0:03:44]} a6 {[%emt 0:00:08]} 6. a4 {[%emt 0:01:45]} b6 {[%emt 0:00:08]} 7. Bxc4 {[%emt 0:01:25]} Bb7 {[%emt 0:00:11]} 8. O-O {[%emt 0:01:00]} Bb4 {[%emt 0:00:17]} 9. Qe2 {[%emt 0:00:57]} Nbd7 {[%emt 0:00:31]} 10. Rd1 {[%emt 0:00:50]} O-O {[%emt 0:03:51]} 11. Bd3 {[%emt 0:05:30]} Bxf3 {[%emt 0:25:19]} 12. Qxf3 {[%emt 0:01:40]} e5 {[%emt 0:02:44]} 13. Qh3 {[%emt 0:22:55]} exd4 {[%emt 0:11:45]} 14. Nd5 {[%emt 0:03:02]} Bd6 {[%emt 0:01:29]} 15. exd4 {[%emt 0:00:20]} Re8 {[%emt 0:07:53]} 16. Bg5 {[%emt 0:03:33]} h6 {[%emt 0:00:37]} 17. Bh4 {[%emt 0:01:23]} g5 {[%emt 0:03:47]} 18. Nxf6+ {[%emt 0:01:54]} Nxf6 {[%emt 0:00:56]} 19. Bg3 {[%emt 0:00:11]} Bxg3 {[%emt 0:00:03]} 20. Qxg3 {[%emt 0:01:38]} Nd5 {[%emt 0:11:22]} 21. Qf3 {[%emt 0:06:20]} Qd6 {[%emt 0:02:05]} 22. Bc4 {[%emt 0:01:28]} Nf6 {[%emt 0:02:57]} 23. Rac1 {[%emt 0:09:13]} Qf4 {[%emt 0:14:53]} 24. Qxf4 {[%emt 0:13:51]} gxf4 {[%emt 0:00:02]} 25. g3 {[%emt 0:01:12]} fxg3 {[%emt 0:00:57]} 26. hxg3 {[%emt 0:00:23]} Re7 {[%emt 0:00:10]} 27. b3 {[%emt 0:05:51]} a5 {[%emt 0:06:35]} 28. Bb5 {[%emt 0:03:49]} Rd8 {[%emt 0:00:07]} 29. Kg2 {[%emt 0:00:42]} Kg7 {[%emt 0:01:18]} 30. Rd2 {[%emt 0:04:31]} Rd6 {[%emt 0:01:10]} 31. Re2 {[%emt 0:01:15]} Rxe2 {[%emt 0:00:17]} 32. Bxe2 {[%emt 0:00:04]} Rd7 {[%emt 0:00:05]} 33. Bb5 {[%emt 0:01:57]} Re7 {[%emt 0:00:03]} 34. Bc6 {[%emt 0:01:31]} Nh7 {[%emt 0:00:25]} 35. Rc2 {[%emt 0:01:34]} Ng5 {[%emt 0:00:10]} 36. Bb5 {[%emt 0:00:28]} f5 {[%emt 0:01:34]} 37. Rc6 {[%emt 0:00:29]} Ne6 {[%emt 0:00:21]} 38. Rc4 {[%emt 0:00:36]} Ng5 {[%emt 0:01:48]} 39. b4 {[%emt 0:00:13]} axb4 {[%emt 0:00:21]} 40. Rxb4 {[%emt 0:00:00]} Nf7 {[%emt 0:00:00]} 41. Bd3 {[%emt 0:06:22]} Nd6 {[%emt 0:01:36]} 42. a5 {[%emt 0:01:10]} bxa5 {[%emt 0:01:27]} 43. Ra4 {[%emt 0:00:10]} Re1 {[%emt 0:07:29]} 44. Rxa5 {[%emt 0:00:16]} Rd1 {[%emt 0:00:42]} 45. Bxf5 {[%emt 0:01:05]} 1/2-1/2

[Event "12th Asrian Memorial 2019"]
[Site "Yerevan"]
[Date "2019.06.12"]
[Round "2.12"]
[White "Davtyan, Artur"]
[Black "Yeremyan, Alen"]
[Result "1-0"]
[ECO "E94"]
[WhiteElo "2431"]
[BlackElo "2128"]
[Annotator "NA"]
[PlyCount "71"]
[EventDate "2019.06.11"]
[EventType "swiss"]
[EventCountry "ARM"]
[SourceTitle "playchess.com"]
[Source "ChessBase"]
[SourceQuality "1"]
[TimeControl "40/5400+30:1800+30"]

1. d4 {[%emt 0:00:00]} Nf6 {[%emt 0:02:34]} 2. c4 {[%emt 0:00:00]} g6 {[%emt 0:00:29]} 3. Nc3 {[%emt 0:00:00]} Bg7 {[%emt 0:00:05]} 4. e4 {[%emt 0:00:09]} d6 {[%emt 0:00:05]} 5. Be2 {[%emt 0:00:14]} O-O {[%emt 0:00:06]} 6. Nf3 {[%emt 0:00:10]} e5 {[%emt 0:02:27]} 7. O-O {[%emt 0:00:48]} exd4 {[%emt 0:02:53]} 8. Nxd4 {[%emt 0:00:15]} Nc6 {[%emt 0:00:05]} 9. Be3 {[%emt 0:00:59]} Re8 {[%emt 0:11:57]} 10. f3 {[%emt 0:00:54]} Nd7 {[%emt 0:06:01]} 11. Qd2 {[%emt 0:02:48]} Nc5 {[%emt 0:04:32]} 12. Rad1 {[%emt 0:00:45]} Be6 {[%emt 0:01:17]} 13. Rfe1 {[%emt 0:12:09]} a5 {[%emt 0:10:19]} 14. Bf1 {[%emt 0:01:27]} a4 {[%emt 0:07:05]} 15. Qf2 {[%emt 0:06:03]} Qe7 {[%emt 0:03:15]} 16. Ndb5 {[%emt 0:11:16]} Ne5 {[%emt 0:08:43]} 17. Nd5 {[%emt 0:17:08]} Bxd5 {[%emt 0:00:07]} 18. cxd5 {[%emt 0:04:23]} Red8 {[%emt 0:07:37]} 19. Qc2 {[%emt 0:04:39]} Na6 {[%emt 0:04:00]} 20. a3 {[%emt 0:03:32]} c6 {[%emt 0:03:45]} 21. Nc3 {[%emt 0:02:12]} Nc5 {[%emt 0:03:47]} 22. Bxc5 {[%emt 0:05:37]} dxc5 {[%emt 0:00:02]} 23. f4 {[%emt 0:00:01]} Ng4 {[%emt 0:04:36]} 24. e5 {[%emt 0:00:22]} cxd5 {[%emt 0:02:33]} 25. Nxd5 {[%emt 0:00:56]} Qh4 {[%emt 0:02:38]} 26. g3 {[%emt 0:00:12]} Qh5 {[%emt 0:01:52]} 27. h3 {[%emt 0:06:42]} Nxe5 {[%emt 0:04:40]} 28. fxe5 {[%emt 0:01:18]} Bxe5 {[%emt 0:00:02]} 29. Qxc5 {[%emt 0:00:51]} Kg7 {[%emt 0:03:46]} 30. Nf4 {[%emt 0:05:12]} Qg5 {[%emt 0:02:08]} 31. Qf2 {[%emt 0:00:21]} Bf6 {[%emt 0:00:48]} 32. Kh2 {[%emt 0:00:46]} Rac8 {[%emt 0:00:40]} 33. Bg2 {[%emt 0:00:48]} Qf5 {[%emt 0:00:50]} 34. Rf1 {[%emt 0:02:09]} Rxd1 {[%emt 0:00:41]} 35. Rxd1 {[%emt 0:03:42]} Rc2 {[%emt 0:00:31]} 36. Nh5+ {[%emt 0:00:20]} 1-0

[Event "12th Asrian Memorial 2019"]
[Site "Yerevan"]
[Date "2019.06.13"]
[Round "3.1"]
[White "Shahinyan, David"]
[Black "Onischuk, Vladimir"]
[Result "0-1"]
[ECO "A04"]
[WhiteElo "2429"]
[BlackElo "2630"]
[Annotator "RC"]
[PlyCount "164"]
[EventDate "2019.06.11"]
[EventType "swiss"]
[EventCountry "ARM"]
[SourceTitle "playchess.com"]
[Source "ChessBase"]
[SourceQuality "1"]
[TimeControl "40/5400+30:1800+30"]

1. Nf3 {[%emt 0:01:06]} g6 {[%emt 0:00:00]} 2. g3 {[%emt 0:00:25]} Bg7 {[%emt 0:00:00]} 3. d4 {[%emt 0:00:23]} Nf6 {[%emt 0:00:17]} 4. Bg2 {[%emt 0:00:11]} O-O {[%emt 0:00:07]} 5. O-O {[%emt 0:00:28]} d6 {[%emt 0:00:05]} 6. c4 {[%emt 0:00:43]} c6 {[%emt 0:00:33]} 7. Nc3 {[%emt 0:01:50]} a6 {[%emt 0:00:09]} 8. e4 {[%emt 0:00:34]} Bg4 {[%emt 0:00:43]} 9. Qb3 {[%emt 0:01:24]} Qc7 {[%emt 0:07:50]} 10. Be3 {[%emt 0:03:25]} Bxf3 {[%emt 0:03:33]} 11. Bxf3 {[%emt 0:00:09]} Nbd7 {[%emt 0:02:04]} 12. Rfd1 {[%emt 0:00:27]} Rfd8 {[%emt 0:08:48]} 13. Rac1 {[%emt 0:13:50]} e5 {[%emt 0:12:35]} 14. dxe5 {[%emt 0:09:01]} Nxe5 {[%emt 0:06:31]} 15. Be2 {[%emt 0:04:10]} Qe7 {[%emt 0:03:04]} 16. f4 {[%emt 0:08:44]} Ned7 {[%emt 0:04:15]} 17. Bf3 {[%emt 0:01:51]} Nc5 {[%emt 0:04:36]} 18. Bxc5 {[%emt 0:06:06]} dxc5 {[%emt 0:00:10]} 19. e5 {[%emt 0:03:09]} Ne8 {[%emt 0:00:11]} 20. Ne4 {[%emt 0:14:09]} f5 {[%emt 0:02:02]} 21. exf6 {[%emt 0:01:53]} Rxd1+ {[%emt 0:01:46]} 22. Rxd1 {[%emt 0:00:42]} Nxf6 {[%emt 0:00:08]} 23. Nd6 {[%emt 0:04:27]} Rb8 {[%emt 0:20:03]} 24. Bxc6 {[%emt 0:00:59]} Ng4 {[%emt 0:00:43]} 25. Bd5+ {[%emt 0:04:49]} Kf8 {[%emt 0:00:51]} 26. Ne4 {[%emt 0:00:32]} Bd4+ {[%emt 0:02:57]} 27. Rxd4 {[%emt 0:00:01]} cxd4 {[%emt 0:00:05]} 28. Qd1 {[%emt 0:00:11]} h5 {[%emt 0:05:40]} 29. Qxd4 {[%emt 0:05:51]} Qg7 {[%emt 0:01:26]} 30. Qb6 {[%emt 0:00:56]} Re8 {[%emt 0:02:17]} 31. h3 {[%emt 0:00:08]} Nh6 {[%emt 0:00:35]} 32. Qd6+ {[%emt 0:08:08]} Qe7 {[%emt 0:00:04]} 33. Qxg6 {[%emt 0:00:05]} Qg7 {[%emt 0:00:04]} 34. Qd6+ {[%emt 0:00:26]} Re7 {[%emt 0:00:04]} 35. Qb8+ {[%emt 0:02:15]} Re8 {[%emt 0:00:16]} 36. Qd6+ {[%emt 0:00:02]} Re7 {[%emt 0:00:09]} 37. g4 {[%emt 0:01:28]} Qd4+ {[%emt 0:05:09]} 38. Kh2 {[%emt 0:00:40]} Nf7 {[%emt 0:01:34]} 39. Qc5 {[%emt 0:02:29]} Qxb2+ {[%emt 0:01:56]} 40. Kg3 {[%emt 0:00:00]} b6 {[%emt 0:00:00]} 41. Qc8+ {[%emt 0:01:41]} Kg7 {[%emt 0:06:42]} 42. Qf5 {[%emt 0:01:22]} hxg4 {[%emt 0:07:27]} 43. hxg4 {[%emt 0:04:19]} Qa1 {[%emt 0:00:56]} 44. g5 {[%emt 0:04:25]} Qg1+ {[%emt 0:04:47]} 45. Kf3 {[%emt 0:00:04]} Qf1+ {[%emt 0:05:38]} 46. Nf2 {[%emt 0:00:43]} Qe2+ {[%emt 0:00:08]} 47. Kg2 {[%emt 0:00:04]} Qb2 {[%emt 0:01:06]} 48. Be4 {[%emt 0:00:01]} Qd4 {[%emt 0:01:31]} 49. Bd3 {[%emt 0:08:13]} Nd6 {[%emt 0:05:16]} 50. Qg6+ {[%emt 0:00:39]} Kf8 {[%emt 0:00:09]} 51. f5 {[%emt 0:00:17]} Rg7 {[%emt 0:03:31]} 52. Qh6 {[%emt 0:00:02]} Nf7 {[%emt 0:00:28]} 53. Qh2 {[%emt 0:09:38]} Rxg5+ {[%emt 0:00:09]} 54. Kf3 {[%emt 0:00:04]} Kg7 {[%emt 0:01:52]} 55. Qc7 {[%emt 0:01:07]} Rg1 {[%emt 0:02:41]} 56. Be4 {[%emt 0:02:10]} Qd6 {[%emt 0:00:30]} 57. Qb7 {[%emt 0:01:49]} Qg3+ {[%emt 0:01:04]} 58. Ke2 {[%emt 0:00:01]} Qc3 {[%emt 0:00:36]} 59. Bd3 {[%emt 0:00:22]} Qe1+ {[%emt 0:00:39]} 60. Kf3 {[%emt 0:00:01]} Qe5 {[%emt 0:00:17]} 61. Ne4 {[%emt 0:01:59]} Qxf5+ {[%emt 0:00:05]} 62. Ke3 {[%emt 0:00:05]} Qe6 {[%emt 0:00:54]} 63. Qd5 {[%emt 0:01:20]} Qh6+ {[%emt 0:00:35]} 64. Kd4 {[%emt 0:00:11]} Qf4 {[%emt 0:00:50]} 65. Kc3 {[%emt 0:00:43]} Rc1+ {[%emt 0:00:38]} 66. Kb3 {[%emt 0:01:27]} Qe5 {[%emt 0:00:17]} 67. Qd7 {[%emt 0:00:09]} Rg1 {[%emt 0:00:26]} 68. Qh3 {[%emt 0:01:25]} Qd4 {[%emt 0:00:32]} 69. Nc3 {[%emt 0:00:01]} Rg5 {[%emt 0:00:32]} 70. Qh7+ {[%emt 0:01:16]} Kf8 {[%emt 0:00:06]} 71. Bg6 {[%emt 0:00:01]} Qg7 {[%emt 0:00:38]} 72. Qxg7+ {[%emt 0:00:33]} Kxg7 {[%emt 0:00:04]} 73. Bxf7 {[%emt 0:00:13]} Kxf7 {[%emt 0:00:15]} 74. Nd5 {[%emt 0:01:48]} b5 {[%emt 0:00:42]} 75. Kb4 {[%emt 0:00:35]} Rg4 {[%emt 0:00:32]} 76. Nb6 {[%emt 0:00:00]} Ke7 {[%emt 0:00:52]} 77. Kc5 {[%emt 0:00:01]} Rg5+ {[%emt 0:00:31]} 78. Kb4 {[%emt 0:01:26]} Kd6 {[%emt 0:00:17]} 79. a4 {[%emt 0:00:29]} Kc6 {[%emt 0:00:27]} 80. Nd5 {[%emt 0:00:32]} a5+ {[%emt 0:00:12]} 81. Kc3 {[%emt 0:00:30]} Rg3+ {[%emt 0:00:09]} 82. Kd4 {[%emt 0:00:16]} Rg4+ {[%emt 0:00:10]} 0-1

[Event "12th Asrian Memorial 2019"]
[Site "Yerevan"]
[Date "2019.06.13"]
[Round "3.2"]
[White "Chibukhchian, Artur"]
[Black "Andriasian, Zaven"]
[Result "1/2-1/2"]
[ECO "E91"]
[WhiteElo "2374"]
[BlackElo "2600"]
[Annotator "RC"]
[PlyCount "43"]
[EventDate "2019.06.11"]
[EventType "swiss"]
[EventCountry "ARM"]
[SourceTitle "playchess.com"]
[Source "ChessBase"]
[SourceQuality "1"]
[TimeControl "40/5400+30:1800+30"]

1. Nf3 {[%emt 0:06:33]} Nf6 {[%emt 0:00:27]} 2. c4 {[%emt 0:00:09]} g6 {[%emt 0:00:42]} 3. Nc3 {[%emt 0:06:25]} Bg7 {[%emt 0:00:31]} 4. e4 {[%emt 0:01:57]} d6 {[%emt 0:00:27]} 5. d4 {[%emt 0:00:07]} O-O {[%emt 0:00:27]} 6. Be2 {[%emt 0:00:05]} Nbd7 {[%emt 0:00:24]} 7. O-O {[%emt 0:00:15]} e5 {[%emt 0:00:31]} 8. Be3 {[%emt 0:06:16]} exd4 {[%emt 0:01:47]} 9. Nxd4 {[%emt 0:00:55]} Re8 {[%emt 0:00:11]} 10. f3 {[%emt 0:05:07]} Nc5 {[%emt 0:01:36]} 11. Qd2 {[%emt 0:05:17]} Bd7 {[%emt 0:02:19]} 12. b4 {[%emt 0:04:13]} Ne6 {[%emt 0:03:45]} 13. Rad1 {[%emt 0:08:09]} a5 {[%emt 0:03:12]} 14. a3 {[%emt 0:03:03]} axb4 {[%emt 0:13:44]} 15. axb4 {[%emt 0:00:18]} Qe7 {[%emt 0:00:20]} 16. Ndb5 {[%emt 0:06:31]} Bxb5 {[%emt 0:02:39]} 17. cxb5 {[%emt 0:04:48]} Ra3 {[%emt 0:02:20]} 18. Nb1 {[%emt 0:08:01]} Ra1 {[%emt 0:10:35]} 19. Nc3 {[%emt 0:01:01]} Ra3 {[%emt 0:00:21]} 20. Nb1 {[%emt 0:01:28]} Ra1 {[%emt 0:05:59]} 21. Nc3 Ra3 22. Nb1 1/2-1/2

[Event "12th Asrian Memorial 2019"]
[Site "Yerevan"]
[Date "2019.06.13"]
[Round "3.3"]
[White "Kulaots, Kaido"]
[Black "Davtyan, Artur"]
[Result "1/2-1/2"]
[ECO "A06"]
[WhiteElo "2574"]
[BlackElo "2431"]
[Annotator "ChessBase"]
[PlyCount "106"]
[EventDate "2019.06.11"]
[EventType "swiss"]
[EventCountry "ARM"]
[SourceTitle "playchess.com"]
[Source "ChessBase"]
[SourceQuality "1"]
[TimeControl "40/5400+30:1800+30"]

1. Nf3 {[%emt 0:00:00]} d5 {[%emt 0:00:00]} 2. g3 {[%emt 0:00:00]} Nf6 {[%emt 0:00:01]} 3. Bg2 {[%emt 0:00:10]} e6 {[%emt 0:00:11]} 4. O-O {[%emt 0:00:16]} Be7 {[%emt 0:00:06]} 5. c4 {[%emt 0:02:11]} dxc4 {[%emt 0:00:27]} 6. Qc2 {[%emt 0:01:59]} c5 {[%emt 0:05:09]} 7. Na3 {[%emt 0:01:37]} Nc6 {[%emt 0:03:56]} 8. Nxc4 {[%emt 0:00:13]} O-O {[%emt 0:11:22]} 9. b3 {[%emt 0:00:57]} b5 {[%emt 0:10:26]} 10. Nce5 {[%emt 0:16:48]} Nb4 {[%emt 0:08:14]} 11. Qb1 {[%emt 0:02:47]} Bb7 {[%emt 0:00:19]} 12. Bb2 {[%emt 0:01:06]} Qb6 {[%emt 0:09:13]} 13. a3 {[%emt 0:14:49]} Nc6 {[%emt 0:09:36]} 14. Nxc6 {[%emt 0:01:17]} Bxc6 {[%emt 0:00:40]} 15. Qc2 {[%emt 0:02:21]} Rac8 {[%emt 0:09:06]} 16. d3 Rfd8 {[%emt 0:03:15]} 17. Rac1 {[%emt 0:07:21]} h6 {[%emt 0:00:56]} 18. Qb1 {[%emt 0:01:42]} Bd5 {[%emt 0:07:37]} 19. Nd2 {[%emt 0:23:08]} Qb7 {[%emt 0:00:32]} 20. Bf3 {[%emt 0:03:18]} Nd7 {[%emt 0:05:02]} 21. Rc2 {[%emt 0:02:36]} Rc7 {[%emt 0:00:52]} 22. Qa1 {[%emt 0:00:55]} Bf8 {[%emt 0:00:06]} 23. Rfc1 {[%emt 0:00:43]} Rdc8 {[%emt 0:00:14]} 24. e4 {[%emt 0:01:45]} Bc6 {[%emt 0:00:14]} 25. b4 {[%emt 0:01:04]} cxb4 {[%emt 0:09:31]} 26. axb4 {[%emt 0:00:16]} e5 {[%emt 0:03:26]} 27. d4 {[%emt 0:01:24]} Bxb4 {[%emt 0:01:38]} 28. Nb3 {[%emt 0:01:50]} Nb6 {[%emt 0:00:09]} 29. d5 {[%emt 0:01:39]} Be8 {[%emt 0:00:13]} 30. Rxc7 {[%emt 0:00:46]} Rxc7 {[%emt 0:00:01]} 31. Rxc7 {[%emt 0:01:15]} Qxc7 {[%emt 0:00:01]} 32. Bxe5 {[%emt 0:00:09]} Qc4 {[%emt 0:00:09]} 33. Bxg7 {[%emt 0:05:51]} Qxb3 {[%emt 0:01:03]} 34. Qf6 {[%emt 0:00:22]} Bf8 {[%emt 0:02:22]} 35. Bxf8 {[%emt 0:00:19]} Kxf8 {[%emt 0:00:01]} 36. Qxh6+ {[%emt 0:02:59]} Ke7 {[%emt 0:00:21]} 37. d6+ {[%emt 0:00:37]} Kd8 {[%emt 0:00:12]} 38. Qg5+ {[%emt 0:01:24]} Kc8 {[%emt 0:00:54]} 39. Bg4+ {[%emt 0:00:47]} Bd7 {[%emt 0:00:13]} 40. Qc5+ {[%emt 0:00:00]} Kb7 {[%emt 0:00:00]} 41. Bxd7 {[%emt 0:02:55]} Qb1+ {[%emt 0:00:22]} 42. Kg2 {[%emt 0:00:05]} Qxe4+ {[%emt 0:00:05]} 43. f3 {[%emt 0:02:26]} Qe2+ {[%emt 0:09:18]} 44. Kh3 {[%emt 0:00:18]} Nxd7 {[%emt 0:02:00]} 45. Qc7+ {[%emt 0:00:10]} Ka6 {[%emt 0:00:07]} 46. Qxd7 {[%emt 0:01:43]} Qxf3 {[%emt 0:01:05]} 47. Qc8+ {[%emt 0:06:43]} Kb6 {[%emt 0:04:28]} 48. Qc7+ {[%emt 0:00:16]} Ka6 {[%emt 0:00:01]} 49. Qc5 {[%emt 0:05:48]} f5 50. Qe5 {[%emt 0:03:19]} Qd1 {[%emt 0:19:02]} 51. Qe6 {[%emt 0:01:54]} Kb6 {[%emt 0:00:39]} 52. d7+ {[%emt 0:01:49]} Kc7 {[%emt 0:00:14]} 53. Qe5+ {[%emt 0:00:11]} Kc6 {[%emt 0:00:32]} 1/2-1/2

[Event "12th Asrian Memorial 2019"]
[Site "Yerevan"]
[Date "2019.06.13"]
[Round "3.4"]
[White "Baghdasaryan, Vahe"]
[Black "Harutyunian, Tigran K."]
[Result "1-0"]
[ECO "A06"]
[WhiteElo "2357"]
[BlackElo "2552"]
[Annotator "ChessBase"]
[PlyCount "93"]
[EventDate "2019.06.11"]
[EventType "swiss"]
[EventCountry "ARM"]
[SourceTitle "playchess.com"]
[Source "ChessBase"]
[SourceQuality "1"]
[TimeControl "40/5400+30:1800+30"]

1. Nf3 {[%emt 0:00:52]} d5 {[%emt 0:01:16]} 2. g3 {[%emt 0:00:42]} g6 {[%emt 0:01:10]} 3. Bg2 {[%emt 0:00:52]} Bg7 {[%emt 0:00:07]} 4. c4 {[%emt 0:01:48]} c6 {[%emt 0:03:43]} 5. O-O {[%emt 0:02:23]} e5 {[%emt 0:02:54]} 6. cxd5 {[%emt 0:04:41]} cxd5 {[%emt 0:00:45]} 7. d4 {[%emt 0:03:22]} e4 {[%emt 0:01:07]} 8. Ne1 {[%emt 0:01:59]} Nc6 {[%emt 0:01:45]} 9. e3 {[%emt 0:08:06]} Nge7 {[%emt 0:04:29]} 10. f3 {[%emt 0:01:09]} f5 {[%emt 0:10:36]} 11. fxe4 {[%emt 0:00:42]} fxe4 {[%emt 0:05:16]} 12. Nc3 {[%emt 0:02:10]} Be6 {[%emt 0:02:33]} 13. Qb3 {[%emt 0:23:02]} Qd7 {[%emt 0:03:43]} 14. Qa3 {[%emt 0:00:45]} Rd8 {[%emt 0:14:47]} 15. Bd2 {[%emt 0:12:17]} h5 {[%emt 0:01:18]} 16. Nc2 {[%emt 0:11:10]} h4 {[%emt 0:02:53]} 17. gxh4 {[%emt 0:00:33]} Nf5 {[%emt 0:03:50]} 18. Be1 {[%emt 0:01:37]} Bf8 {[%emt 0:01:20]} 19. Qa4 {[%emt 0:03:33]} Bd6 {[%emt 0:00:08]} 20. Bxe4 dxe4 {[%emt 0:03:14]} 21. d5 {[%emt 0:06:55]} Ne5 {[%emt 0:04:10]} 22. Qxe4 {[%emt 0:08:11]} Bf7 {[%emt 0:01:09]} 23. Nd4 {[%emt 0:00:08]} Qe7 {[%emt 0:02:56]} 24. Rxf5 {[%emt 0:02:17]} gxf5 {[%emt 0:06:55]} 25. Nxf5 {[%emt 0:00:01]} Bg6 {[%emt 0:07:03]} 26. Qa4+ {[%emt 0:00:06]} Qd7 {[%emt 0:00:04]} 27. Nxd6+ {[%emt 0:00:07]} Ke7 {[%emt 0:00:04]} 28. Qxd7+ {[%emt 0:00:26]} Kxd7 {[%emt 0:01:22]} 29. Nxb7 {[%emt 0:01:28]} Nf3+ {[%emt 0:02:42]} 30. Kg2 {[%emt 0:01:37]} Nxe1+ {[%emt 0:00:38]} 31. Rxe1 {[%emt 0:00:02]} Rdg8 {[%emt 0:00:06]} 32. e4 {[%emt 0:01:53]} Rxh4 {[%emt 0:04:10]} 33. Kf3 {[%emt 0:00:37]} Rxh2 {[%emt 0:04:27]} 34. Na4 {[%emt 0:00:31]} Rh3+ {[%emt 0:01:55]} 35. Kf4 {[%emt 0:00:47]} Rh4+ {[%emt 0:01:00]} 36. Ke5 {[%emt 0:00:29]} Re8+ {[%emt 0:00:14]} 37. Kf6 {[%emt 0:00:30]} Bxe4 {[%emt 0:00:12]} 38. Nac5+ {[%emt 0:00:11]} Kc7 {[%emt 0:00:18]} 39. d6+ {[%emt 0:00:12]} Kc6 {[%emt 0:00:18]} 40. Nxe4 {[%emt 0:00:00]} Rf4+ {[%emt 0:00:00]} 41. Kg5 {[%emt 0:01:46]} Rff8 {[%emt 0:03:25]} 42. Na5+ {[%emt 0:08:06]} Kb5 {[%emt 0:02:01]} 43. Nb3 {[%emt 0:00:37]} Kc4 {[%emt 0:05:03]} 44. d7 {[%emt 0:02:03]} Re5+ {[%emt 0:01:05]} 45. Kg4 {[%emt 0:01:05]} Rd5 {[%emt 0:05:21]} 46. Rc1+ {[%emt 0:00:44]} Kd3 {[%emt 0:01:10]} 47. Rc8 {[%emt 0:00:20]} 1-0

[Event "12th Asrian Memorial 2019"]
[Site "Yerevan"]
[Date "2019.06.13"]
[Round "3.5"]
[White "Gharibyan, Mamikon"]
[Black "Sargsyan, Shant"]
[Result "1/2-1/2"]
[ECO "A05"]
[WhiteElo "2320"]
[BlackElo "2512"]
[Annotator "ChessBase"]
[PlyCount "96"]
[EventDate "2019.06.11"]
[EventType "swiss"]
[EventCountry "ARM"]
[SourceTitle "playchess.com"]
[Source "ChessBase"]
[SourceQuality "1"]
[TimeControl "40/5400+30:1800+30"]

1. Nf3 {[%emt 0:00:00]} Nf6 {[%emt 0:00:42]} 2. c4 {[%emt 0:01:00]} g6 {[%emt 0:00:49]} 3. Nc3 {[%emt 0:04:35]} Bg7 {[%emt 0:01:09]} 4. e4 {[%emt 0:02:22]} e5 {[%emt 0:00:48]} 5. g3 {[%emt 0:19:09]} O-O {[%emt 0:03:39]} 6. Bg2 {[%emt 0:00:45]} d6 {[%emt 0:01:10]} 7. O-O {[%emt 0:00:56]} Bg4 {[%emt 0:03:34]} 8. d3 {[%emt 0:04:28]} Nc6 {[%emt 0:00:58]} 9. h3 {[%emt 0:09:29]} Bxf3 {[%emt 0:00:16]} 10. Qxf3 {[%emt 0:00:20]} Nd7 {[%emt 0:01:55]} 11. Rb1 {[%emt 0:08:31]} a5 {[%emt 0:05:35]} 12. h4 {[%emt 0:08:01]} Nc5 {[%emt 0:03:15]} 13. h5 {[%emt 0:05:51]} Nd4 {[%emt 0:05:26]} 14. Qd1 {[%emt 0:00:08]} c6 {[%emt 0:01:09]} 15. Ne2 {[%emt 0:05:51]} Nxe2+ {[%emt 0:04:23]} 16. Qxe2 {[%emt 0:00:05]} Ne6 {[%emt 0:01:44]} 17. hxg6 {[%emt 0:03:05]} fxg6 {[%emt 0:04:30]} 18. Be3 {[%emt 0:00:25]} Qf6 {[%emt 0:02:59]} 19. b4 {[%emt 0:06:27]} Rf7 {[%emt 0:21:45]} 20. Rfc1 {[%emt 0:09:19]} h5 {[%emt 0:09:08]} 21. Bh3 {[%emt 0:06:37]} Kh7 {[%emt 0:01:57]} 22. bxa5 {[%emt 0:01:36]} Rxa5 {[%emt 0:01:59]} 23. Bxe6 {[%emt 0:00:13]} Qxe6 {[%emt 0:00:07]} 24. Rb2 {[%emt 0:00:42]} d5 {[%emt 0:03:54]} 25. Rcb1 {[%emt 0:01:23]} d4 {[%emt 0:01:47]} 26. Bg5 {[%emt 0:00:19]} Ra7 {[%emt 0:00:50]} 27. Kg2 {[%emt 0:00:28]} Bh6 {[%emt 0:01:01]} 28. Bd8 {[%emt 0:01:10]} Ra8 {[%emt 0:01:08]} 29. Bb6 {[%emt 0:00:18]} Qe7 {[%emt 0:02:23]} 30. Qd1 {[%emt 0:00:37]} Ra3 {[%emt 0:00:44]} 31. Qe2 {[%emt 0:00:22]} Ra8 {[%emt 0:01:53]} 32. Qd1 {[%emt 0:00:19]} h4 {[%emt 0:01:34]} 33. Qg4 {[%emt 0:00:36]} hxg3 {[%emt 0:01:25]} 34. Qxg3 {[%emt 0:00:33]} Kg7 {[%emt 0:05:42]} 35. Rh1 {[%emt 0:00:21]} Rh8 {[%emt 0:01:17]} 36. Rbb1 {[%emt 0:00:45]} Rff8 {[%emt 0:01:56]} 37. Qg4 {[%emt 0:00:42]} Rf4 {[%emt 0:01:11]} 38. Qg3 {[%emt 0:00:12]} Rhf8 {[%emt 0:01:17]} 39. Rb2 {[%emt 0:00:36]} Bg5 {[%emt 0:01:58]} 40. Bc5 {[%emt 0:00:00]} Qxc5 {[%emt 0:00:00]} 41. Qxg5 {[%emt 0:00:57]} b5 {[%emt 0:07:18]} 42. Rh5 {[%emt 0:15:56]} R4f6 {[%emt 0:15:23]} 43. a4 {[%emt 0:08:05]} Qa3 {[%emt 0:05:54]} 44. Qh6+ {[%emt 0:00:53]} Kf7 {[%emt 0:00:00]} 45. Rxe5 {[%emt 0:00:11]} Kg8 {[%emt 0:00:05]} 46. Rg5 {[%emt 0:03:57]} Qxb2 {[%emt 0:00:44]} 47. Rxg6+ {[%emt 0:00:05]} Rxg6+ {[%emt 0:00:04]} 48. Qxg6+ {[%emt 0:00:05]} Kh8 {[%emt 0:00:01]} 1/2-1/2